Cogmind - Beta 16.1 @@@ ROGUE MODE // 2026.03.21 @ 21:10:00 Player: Ceorik Result: Destroyed by S-10 Pest with Light Assault Rifle Performance ------------- Evolutions (0) 0 Regions Visited (2) 400 Robots Destroyed (21) 105 Value Destroyed (412) 412 Prototype IDs (0) 0 Alien Tech Used (0) 0 Bonus (0) 0 TOTAL SCORE: 917 Bonus ------- None Cogmind --------- Core Integrity 0/250 Matter 210/300 Energy 250/250 System Corruption 2% Temperature Cool (0) Movement Rolling (110) Ox2 Location -10/Mines Parts ------- > --- POWER (1) -------- Ion Engine > --- PROPULSION (2) --- Wheel Wheel > --- UTILITY (2) ------ High-capacity Storage Unit Structural Scanner > --- WEAPON (2) ------- Assault Rifle Light Assault Rifle > --- INVENTORY (20) --- Light Ion Engine Improved Ion Engine Light Treads Light Treads Wheel Heat Sink Improved Heat Sink High-capacity Storage Unit Huge Storage Unit Compact Battery (200) Large Matter Pod (145) High-capacity Matter Pod (0) Seismic Detector Improved Utility Shielding Light Armor Plating Hardlight Generator Grenade Launcher Grenade Launcher Datajack Heavy Flail Peak State ------------ > --- POWER ------------ Ion Engine > --- PROPULSION ------- Wheel Compact Wheel > --- UTILITY ---------- Huge Storage Unit Structural Scanner > --- WEAPON ----------- Assault Rifle Assault Rifle > --- INVENTORY -------- Ion Engine Light Ion Engine Improved Ion Engine Light Treads Light Treads Light Treads Wheel Wheel Heat Sink High-capacity Storage Unit High-capacity Storage Unit Large Matter Pod High-capacity Matter Pod Seismic Detector Improved Utility Shielding Light Armor Plating Light Armor Plating Hardlight Generator Assault Rifle Light Assault Rifle Grenade Launcher Grenade Launcher Grenade Launcher Datajack Hammer [Rating: 10] Favorites ----------- Power Ion Engine Engine Ion Engine Propulsion Compact Wheel Treads Light Treads Wheel Compact Wheel Utility Huge Storage Unit Device Seismic Detector Storage Huge Storage Unit Protection Light Armor Plating Weapon Assault Rifle Ballistic Gun Assault Rifle Launcher Grenade Launcher Build | -11 -10 -10 ------- Run | Yrd Mat Min Slots Evolved . | . . . Power . | . . . Propulsion . | . . . Utility . | . . . Weapon . | . . . Parts Attached 25 | 7 11 7 Power 4 | 1 2 1 Engine 4 | 1 2 1 Core . | . . . Reactor . | . . . Propulsion 7 | 2 4 1 Treads 4 | 2 2 . Leg . | . . . Wheel 3 | . 2 1 Hover . | . . . Flight . | . . . Utility 8 | 2 2 4 Device 2 | 1 . 1 Storage 3 | 1 1 1 Processor . | . . . Hackware . | . . . Protection 3 | . 1 2 Artifact . | . . . Weapon 6 | 2 3 1 Energy Gun . | . . . Energy Cannon . | . . . Ballistic Gun 5 | 2 2 1 Ballistic Cannon . | . . . Launcher 1 | . 1 . Special Weapon . | . . . Impact Weapon . | . . . Slashing Weapon . | . . . Piercing Weapon . | . . . Special Melee Weapon . | . . . Unidentified Prototypes . | . . . Parts Lost 7 | . 2 5 Power 2 | . 1 1 Propulsion 1 | . . 1 Utility 1 | . . 1 Weapon 3 | . 1 2 Highest Loss Streak 5 | . 1 5 To Critical Strikes . | . . . Average Backups 19 | 2 19 23 Power 2 | . 3 2 Propulsion 3 | 1 3 4 Utility 7 | . 6 10 Weapon 4 | . 5 5 Tool/Special . | . . . Unused Backups 26 | . 4 22 Power 4 | . 1 3 Propulsion 2 | . 1 1 Utility 12 | . 2 10 Weapon 7 | . . 7 Tool/Special 1 | . . 1 Average Slot Usage (%) 99 | . 100 97 Engine 13 | . 14 12 Treads 4 | . 6 . Wheel 23 | . 21 27 Device 6 | . 6 6 Storage 14 | . 14 14 Protection 7 | . 8 7 Ballistic Gun 27 | . 28 26 Peak Build Rating 10 | 7 9 10 Average Rating 8 | 4 8 9 On Entrance 5 | . 7 9 Avg Prop Armor Cover (%) 9 | . 9 . Naked Turns . | . . . Heaviest Build 92 | 12 92 92 Greatest Support 40 | 40 40 26 Greatest Overweight (x) 8 | . 8 8 Average Overweight (x) 3 | . 3 3 Largest Inventory Capacity 25 | 8 25 25 Average Capacity 23 | 6 23 24 Most Carried 25 | 4 25 25 Average Carried 19 | 2 19 23 Final Capacity 25 | 8 25 20 Final Carried 25 | 4 25 20 Class Distribution -------------------- 100% | Mutant Dominant Class ---------------- Mutant | -10/Materials Mutant | -10/Mines Resources | -11 -10 -10 ----------- Run | Yrd Mat Min Matter Collected 1199 | 252 787 160 Remotely . | . . . Salvage Created 588 | 17 571 . Parts 35 | 3 32 . Haulers Intercepted 2 | . 2 . Recyclers Shooed . | . . . Parts Field Recycled . | . . . Retrieved Matter . | . . . Parts Self-Destructed . | . . . Prevented . | . . . Parts Restored . | . . . Kills | -11 -10 -10 ------- Run | Yrd Mat Min Combat Hostiles Destroyed 15 | . 14 1 Guns 13 | . 12 1 AOE 2 | . 2 . Classes Destroyed 6 | 1 4 1 Worker 3 | . 3 . Tunneler 1 | 1 . . Hauler 2 | . 2 . Swarmer 6 | . 6 . Grunt 8 | . 8 . Demolisher 1 | . . 1 Best Kill Streak 4 | 1 4 1 Combat Bots Only 3 | . 3 1 Max Kills in Single Turn 2 | 1 2 1 Gunslinging . | . . . Exploded 1 | . 1 . Melee . | . . . Uniques/NPCs Destroyed . | . . . Combat | -11 -10 -10 -------- Run | Yrd Mat Min Hostile Shots Fired 109 | . 84 25 Missed 29 | . 25 4 Hits 80 | . 59 21 Projectile 80 | . 59 21 AOE 14 | . . 14 Critical Strikes 1 | . 1 . Damage Taken 1223 | . 581 642 Core 254 | . 117 137 Absorbed by Shields . | . . . Core Remaining (%) 100 | 100 . . Volleys Fired 71 | 1 67 3 Largest 2 | 2 2 2 Hottest 40 | 40 40 40 Shots Fired 141 | 2 132 7 Gun 139 | 2 130 7 Cannon . | . . . Launcher 2 | . 2 . Special . | . . . Kinetic 139 | 2 130 7 Thermal . | . . . Explosive 2 | . 2 . Electromagnetic . | . . . Robot Hit Streak 12 | 1 12 6 Robot Miss Streak 3 | . 3 1 Penetration Max . | . . . Secondary Targets 1 | . 1 . Max Gunslinging Chain 1 | . 1 . Shots Hit Robots 95 | 1 89 5 Core Hits 31 | 1 28 2 Critical Kills . | . . . Critical Parts Destroyed 1 | . 1 . Critical Strikes 1 | . 1 . Destroy 1 | . 1 . Melee Attacks . | . . . Impact . | . . . Slashing . | . . . Piercing . | . . . Sneak Attacks . | . . . Combat Hostiles . | . . . Follow-up Attacks . | . . . Damage Inflicted 1228 | 12 1167 49 Guns 1107 | 12 1046 49 Cannons . | . . . Explosions 121 | . 121 . Melee . | . . . Ramming . | . . . Kinetic 1107 | 12 1046 49 Thermal . | . . . Explosive 121 | . 121 . Electromagnetic . | . . . Impact . | . . . Slashing . | . . . Piercing . | . . . Highest Corruption 2 | . 2 2 Average Corruption 2 | . 2 2 Corruption Purged . | . . . Corruption Blocked . | . . . Effects 12 | . 3 9 Message Errors 3 | . . 3 Matter Fused 3 | . 2 1 Heat Flow Errors 1 | . . 1 Energy Discharges 2 | . 1 1 Data Loss (minor) 2 | . . 2 Misfires 1 | . . 1 Overload Shots . | . . . Overflow Damage . | . . . Projectiles . | . . . Explosions . | . . . Melee . | . . . Knockbacks . | . . . Impact . | . . . Kinetic . | . . . Secondary . | . . . Self-Inflicted Damage . | . . . Shots . | . . . Rammed . | . . . Targets Rammed . | . . . Kicked . | . . . Crushed . | . . . Highest Temperature 83 | . 6 83 Average Temperature 10 | . 2 43 Received Heat Transfer 227 | . 207 20 Siege Activations . | . . . Martial Activations . | . . . Shielding Activations . | . . . Robots Disrupted . | . . . Combat Hostiles . | . . . Robots Corrupted . | . . . Combat Hostiles . | . . . Parts Fried . | . . . Impact Corruptions . | . . . Robots Melted . | . . . Combat Hostiles . | . . . Parts Melted . | . . . Heat Transferred . | . . . Parts Sabotaged . | . . . Parts Stolen . | . . . Parts Stripped . | . . . Power Chain Reactions . | . . . Alert | -11 -10 -10 ------- Run | Yrd Mat Min Maximum Alert Level . | . . . Low Security (%) 100 | 100 100 100 Level 1 . | . . . Level 2 . | . . . Level 3 . | . . . Level 4 . | . . . Level 5 . | . . . High Security . | . . . Max Security . | . . . Peak Influence 146 | 5 146 45 Initial 45 | . . 45 Average 29 | . 39 5 Influence Increases 502 | 5 467 30 Destroy 0b10 Robot/C 300 | . 280 20 Destroy 0b10 Robot/NC 30 | 5 25 . Destroy Leader 54 | . 44 10 Successful Hack 22 | . 22 . Destroy Structure 21 | . 21 . Partial Spotted 15 | . 15 . Lose Combat Pursuer 60 | . 60 . Influence Decreases 502 | 5 349 148 Entered New Map 73 | . . 73 Time Decay 352 | 5 272 75 Lost Part 10 | . 10 . Purge Threat 67 | . 67 . Squads Dispatched 2 | . 1 1 Investigation 2 | . 1 1 Extermination . | . . . Reinforcement . | . . . Assault . | . . . Garrison . | . . . Intercept . | . . . Searches Triggered . | . . . Construction Impeded . | . . . Haulers Reinforced . | . . . Active Scanning Responses . | . . . Cargo Convoy Interrupts . | . . . Stealth | -11 -10 -10 --------- Run | Yrd Mat Min Distress Signals 1 | . 1 . Communications Jammed . | . . . Distress Signals . | . . . Times Spotted 53 | . 28 25 Peak Tracking Total 8 | . 6 8 Tactical Retreats 3 | . 3 . Traps | -11 -10 -10 ------- Run | Yrd Mat Min Traps Triggered 1 | . 1 . Indirectly . | . . . Trap Hack Attempts . | . . . Triggered . | . . . Disarmed . | . . . Reprogrammed . | . . . Reused . | . . . Traps Extracted . | . . . Installed . | . . . Triggered . | . . . Machines | -11 -10 -10 ---------- Run | Yrd Mat Min Machines Disabled . | . . . Max in Single Turn . | . . . Machines Repaired . | . . . Machines Dismantled . | . . . Machines Sabotaged . | . . . Overloaded Fab Kills . | . . . Hacking | -11 -10 -10 --------- Run | Yrd Mat Min Machines Accessed 11 | . 10 1 Terminals 8 | . 8 . Fabricators . | . . . Repair Stations . | . . . Recycling Units 2 | . 2 . Scanalyzers . | . . . Garrison Access . | . . . Total Hacks 23 | . 22 1 Successful 16 | . 15 1 Failed 7 | . 7 . Catastrophic . | . . . Database Lockouts . | . . . Manual 14 | . 14 . Terminals 18 | . 18 . Fabricators . | . . . Repair Stations . | . . . Recycling Units 4 | . 4 . Scanalyzers . | . . . Garrison Access . | . . . Terminal Hacks 7 | . 6 1 Part Schematic 1 | . 1 . Robot Analysis 3 | . 3 . Open Door 1 | . . 1 Unreport Threat 1 | . 1 . Zone Layout 1 | . 1 . Fabricator Hacks . | . . . Repair Station Hacks . | . . . Recycling Unit Hacks 2 | . 2 . Report Inventory 2 | . 2 . Scanalyzer . | . . . Garrison Access Hacks . | . . . Unauthorized Hacks 7 | . 7 . Terminals 6 | . 6 . Botnet 6 | . 6 . Fabricators . | . . . Repair Stations . | . . . Recycling Units 1 | . 1 . Mask 1 | . 1 . Scanalyzers . | . . . Garrison Access . | . . . Data Cores Recovered . | . . . Used . | . . . Hacking Detections 10 | . 10 . Full Trace Events 1 | . 1 . Feedback Events . | . . . Feedback Blocked . | . . . Robot Schematics Acquired . | . . . Robots Built . | . . . Authchips . | . . . Time . | . . . Total Robot Build Rating . | . . . Part Schematics Acquired 1 | . 1 . Parts Built . | . . . Authchips . | . . . Time . | . . . Total Part Build Rating . | . . . Part Studies Acquired . | . . . Parts Repaired . | . . . Time . | . . . Parts Recycled . | . . . Recycled Matter . | . . . Retrieved Matter . | . . . Retrieved Components . | . . . Parts Scanalyzed . | . . . Part Schematics Acquired . | . . . Parts Damaged . | . . . Bothacking | -11 -10 -10 ------------ Run | Yrd Mat Min Used RIF Installer . | . . . Robots Hacked . | . . . Non-combat . | . . . Combat . | . . . Robot Hacks Applied . | . . . Relay Couplers Released . | . . . Fabnet Peak Effective % . | . . . Robots Rewired . | . . . Allies Hacked . | . . . Hacks Repelled . | . . . Allies | -11 -10 -10 -------- Run | Yrd Mat Min Total Allies . | . . . Largest Group . | . . . Highest-Rated Group . | . . . Highest-Rated Ally . | . . . Total Orders . | . . . Ally Attacks . | . . . Total Damage . | . . . Kills . | . . . Allies Corrupted . | . . . Allies Melted . | . . . Intel | -11 -10 -10 ------- Run | Yrd Mat Min Active Infowar (turns) 1105 | 8 778 319 Structural 319 | . . 319 Seismic 786 | 8 778 . Robot Analysis Total 3 | . 3 . Derelict Logs Recovered 1 | . . 1 Drone Launches . | . . . Drone Recoveries . | . . . Exploration | -11 -10 -10 ------------- Run | Yrd Mat Min Turns Passed 2590 | 123 1808 659 Spaces Moved 1549 | 64 1039 446 Core 2 | 2 . . Treads 94 | 62 32 . Legs . | . . . Wheels 1453 | . 1007 446 Hover . | . . . Flight . | . . . Fastest Speed 50 | 50 95 110 Average Speed 139 | 156 140 136 Slowest Speed 200 | 160 200 200 Overloaded Moves . | . . . Propulsion Burnouts . | . . . Robots Hopped . | . . . Potential Cave-ins . | . . . Cave-ins Triggered . | . . . Exploration Rate (%) 62 | 4 97 85 Regions Visited 2 Branch Regions 1 Pre-discovered Areas . | . . . Known Exits Taken . | . . . Unknown Exits Taken 2 | 1 1 . Scrap Searched . | . . . Spaces Dug . | . . . Terrain Destroyed 16 | . 16 . Melee . | . . . Projectile . | . . . AOE 16 | . 16 . Terrain Rammed . | . . . Walls Destroyed . | . . . Machines Disabled . | . . . Actions | -11 -10 -10 --------- Run | Yrd Mat Min Total 1826 | 82 1248 496 Wait 98 | 7 75 16 Move 1547 | 63 1038 446 Hop . | . . . Pick Up 40 | 4 27 9 Fast Attach 7 | 7 . . Attach 7 | . 2 5 Detach . | . . . Swap 39 | . 32 7 Drop 17 | . 7 10 Fire 71 | 1 67 3 Melee . | . . . Ram . | . . . Kick . | . . . Crush . | . . . Escape Stasis . | . . . Rewire . | . . . Trap . | . . . Miscellaneous . | . . . Route ------- -11/Scrapyard -10/Materials (discovered 5 exits: [*Mat x3] / *Min x2) -10/Mines History --------- Turn | Location | Event 2 | -11/Scrapyard | Met Revision 17 6 | -11/Scrapyard | Discovered new exit (range 15) 124 | -11/Scrapyard | Entered Materials 238 | -10/Materials | Discovered new exit (range 16) 310 | -10/Materials | Build established: Mutant 725 | -10/Materials | Discovered new exit (range 14) 1067 | -10/Materials | Discovered new exit (range 14) 1373 | -10/Materials | Discovered new exit (range 9) 1641 | -10/Materials | Discovered new exit (range 8) 1932 | -10/Materials | Entered Mines 1943 | -10/Mines | Met a Derelict bent on vengeance 2048 | -10/Mines | Joined a pair of Derelicts in attacking an 0b10 outpost 2112 | -10/Mines | Learned location of 1 exit from Materials 2253 | -10/Mines | Met a Derelict shopkeep closing up shop 2410 | -10/Mines | Assembled infested the area 2424 | -10/Mines | Core integrity fell below 50% 2449 | -10/Mines | Core integrity fell below 20% 2479 | -10/Mines | Lost 5 parts (1p1n1u2w) 2591 | -10/Mines | Destroyed by S-10 Pest with Light Assault Rifle Last Messages --------------- 02453_ The unstable cave ceiling collapses. 02453_ U-05 Engineer lays Concrete. 02454_ The unstable cave ceiling collapses. 02454_ U-05 Engineer builds a Wall. 02455_ The unstable cave ceiling collapses. 02458_ D-53 Grenadier destroyed. 02459_ The unstable cave ceiling collapses. 02465_ U-05 Engineer builds a Wall. 02467_ The unstable cave ceiling collapses. 02469_ System corrupted: Component data lost. 02471_ The unstable cave ceiling collapses. 02474_ U-05 Engineer lays Concrete. 02481_ U-05 Engineer builds a Wall. 02482_ The unstable cave ceiling collapses. 02486_ U-05 Engineer builds a Wall. 02492_ The unstable cave ceiling collapses. 02494_ U-05 Engineer builds a Wall. 02501_ T-07 Excavator is excavating. 02522_ PRA:%5BCB2F<2LKOV8X